bitfinex/quotes_SOLUSD_20251128
["timestamp","ask_amount","ask_price","bid_price","bid_amount"]
[1764291798729,9.52994492,140.95,140.94,9.36154603]
[1764291798937,9.52994492,140.95,140.94,7.19518675]
[1764291800752,8.80994492,140.95,140.94,7.19518675]
[1764291803212,9.52994492,140.95,140.92,0.1]
[1764291803451,9.52994492,140.94,140.92,0.1]
[1764291803631,11.92994492,140.93,140.92,0.1]
[1764291803834,12.64994492,140.93,140.92,0.1]
[1764291805256,19.7456662,140.93,140.92,0.1]
[1764291805722,12.64994492,140.93,140.92,0.1]
[1764291820272,14.8163042,140.93,140.92,0.1]
[1764291821752,21.91202548,140.93,140.92,0.1]
[1764291831074,19.7456662,140.93,140.92,0.1]
[1764291831581,12.64994492,140.93,140.92,0.1]
[1764291831788,11.92994492,140.93,140.92,0.1]
[1764291832153,12.60994492,140.93,140.92,0.1]
[1764291839458,11.92994492,140.93,140.92,0.1]
[1764291839879,12.60994492,140.93,140.92,0.1]
[1764291840573,11.92994492,140.93,140.92,0.1]
[1764291841076,12.60994492,140.93,140.92,0.1]
[1764291841782,11.92994492,140.93,140.92,7.8862248]
[1764291843470,8.80994492,140.93,140.92,7.8862248]
[1764291843687,11.92994492,140.93,140.92,7.8862248]
[1764291843902,11.92994492,140.93,140.92,0.1]
[1764291845172,11.92994492,140.93,140.92,7.8862248]
[1764291845487,11.92994492,140.93,140.92,10.05258408]
[1764291846669,12.60994492,140.93,140.92,0.1]
[1764291851094,23.0920283,140.93,140.92,0.1]
[1764291852394,19.7056662,140.93,140.92,0.1]
[1764291853770,12.60994492,140.93,140.92,0.1]
[1764291858406,11.92994492,140.93,140.92,0.77]
[1764291858593,11.92994492,140.93,140.92,11.2525869]
[1764291860510,11.92994492,140.93,140.92,7.1962248]
[1764291860891,11.92994492,140.93,140.92,7.8662248]
[1764291863097,11.92994492,140.93,140.92,11.2525869]
[1764291865628,11.92994492,140.93,140.92,7.8662248]
[1764291865922,11.92994492,140.93,140.92,7.1962248]
[1764291867807,11.92994492,140.93,140.92,0.1]
[1764291868209,12.58994492,140.93,140.92,0.1]
[1764291869991,19.6856662,140.93,140.92,0.1]
[1764291871011,23.0720283,140.93,140.92,0.1]
[1764291874607,19.6856662,140.93,140.92,0.1]
[1764291874814,23.0720283,140.93,140.92,0.1]
[1764291875606,19.6856662,140.93,140.92,0.1]
[1764291875809,23.0720283,140.93,140.92,0.1]
[1764291879707,8.80994492,140.92,140.91,0.1]
[1764291879912,12.85630702,140.92,140.91,0.1]
[1764291882831,16.56616972,140.92,140.91,0.1]
[1764291883026,19.95253182,140.92,140.91,0.1]
[1764291883330,16.56616972,140.92,140.91,0.1]
[1764291883522,22.79657177,140.92,140.91,0.1]
[1764291888349,19.95253182,140.92,140.91,0.1]
[1764291892438,8.80994492,140.92,140.91,0.1]
[1764291892639,12.91630702,140.92,140.91,0.1]
[1764291893013,8.80994492,140.92,140.91,0.1]
[1764291898052,20.01253182,140.92,140.91,0.1]
[1764291898423,27.20992585,140.92,140.91,0.1]
[1764291902524,27.20992585,140.92,140.9,0.06]
[1764291902726,12.64994492,140.91,140.9,0.06]
[1764291903043,12.64994492,140.91,140.9,0.75]
[1764291903044,11.92994492,140.91,140.9,0.75]
[1764291903229,11.92994492,140.91,140.9,7.84723207]
[1764291903941,11.92994492,140.91,140.9,0.06]
[1764291904141,11.92994492,140.91,140.9,7.15723207]
[1764291904351,11.92994492,140.91,140.9,7.84723207]
[1764291905936,11.92994492,140.91,140.9,11.23359417]
[1764291908749,11.92994492,140.91,140.9,10.01479399]
[1764291909149,8.80994492,140.99,140.9,65.41159649]
[1764291909340,8.80994492,140.99,140.96,7.09421112]
[1764291909547,3.12,140.98,140.96,7.09421112]
[1764291909856,8.80994492,140.97,140.96,7.09421112]
[1764291910355,8.80994492,140.97,140.96,7.75421112]
[1764291910826,8.80994492,140.97,140.96,9.92177304]
[1764291914549,8.80994492,140.97,140.96,7.75421112]
[1764291914858,8.80994492,140.97,140.96,9.92177304]
[1764291921444,16.308864,141.02,140.96,9.92177304]
[1764291921445,8.80994492,141.02,140.96,9.92177304]
[1764291921739,9.48994492,141.01,140.99,2.16756192]
[1764291922063,8.80994492,141.01,140.99,2.16756192]
[1764291922558,8.80994492,141.0,140.96,33.63968384]
[1764291922758,9.48994492,141.0,140.98,2.16756192]
[1764291922937,3.8,140.99,140.96,7.09421112]
[1764291923143,3.8,140.99,140.97,2.16756192]
[1764291923640,3.12,140.99,140.97,2.16756192]
[1764291923864,3.12,140.99,140.97,9.26121055]
[1764291924066,11.92994492,140.99,140.98,2.16756192]
[1764291931765,12.60994492,140.99,140.97,7.09364863]
[1764291931956,12.60994492,140.99,140.98,2.16756192]
[1764291939869,12.60994492,140.99,140.98,9.26076662]
[1764291940374,12.60994492,140.99,140.98,2.16756192]
[1764291942673,12.60994492,140.99,140.97,7.09348932]
[1764291942872,11.92994492,140.99,140.98,2.16756192]
[1764291943474,12.59994492,140.99,140.98,2.16756192]
[1764291944878,8.80994492,140.98,140.95,0.69]
[1764291945071,9.47994492,140.98,140.97,2.16756192]
[1764291946478,9.47994492,140.98,140.95,2.16756192]
[1764291946684,0.67,140.97,140.95,2.16756192]
[1764291946883,3.12,140.96,140.95,2.16756192]
[1764291947394,3.12,140.96,140.95,9.26227635]
[1764291947690,3.79,140.96,140.95,9.26227635]
[1764291948379,3.12,140.96,140.95,9.26227635]
[1764291951989,3.79,140.96,140.95,9.26227635]
[1764291952380,3.12,140.96,140.95,9.26227635]
[1764291952684,3.12,140.98,140.95,27.68906244]
[1764291952863,8.80994492,140.99,140.97,2.16756192]
[1764291953061,8.80994492,140.99,140.96,0.69]
[1764291953263,8.80994492,140.99,140.98,2.16756192]
[1764291953869,9.47994492,140.99,140.98,2.16756192]
[1764291954578,9.47994492,140.99,140.98,9.26076662]
[1764291954987,8.80994492,140.99,140.98,9.26076662]
[1764291960489,8.80994492,140.99,140.98,9.95076662]
[1764291960694,8.80994492,140.99,140.98,12.11832854]
[1764291961092,8.80994492,141.04,140.98,18.6210143]
[1764291961270,8.80994492,141.02,140.99,0.69]
[1764291961473,16.508864,141.07,141.01,16.308864]
[1764291961474,0.2,141.07,141.01,16.308864]
[1764291961792,0.2,141.07,141.02,0.69]
[1764291962393,0.2,141.07,141.06,2.16756192]
[1764291962600,0.2,141.07,141.06,2.85756192]
[1764291963485,0.2,141.07,141.06,2.16756192]
[1764291964289,0.2,141.07,141.06,9.25674382]
[1764291966599,0.2,141.07,141.06,9.94674382]
[1764291966891,0.2,141.07,141.06,9.25674382]
[1764291967282,0.2,141.07,141.06,9.94674382]
[1764291967887,9.00994492,141.09,141.06,27.66969859]
[1764291968086,9.00994492,141.09,141.08,2.16756192]
[1764291968498,0.2,141.09,141.08,9.94573884]
[1764291970194,9.67994492,141.09,141.08,9.25573884]
[1764291970384,9.00994492,141.09,141.08,9.25573884]
[1764291970586,9.00994492,141.09,141.08,3.3787828]
[1764291972493,9.00994492,141.09,141.08,10.46695972]
[1764291974004,9.69994492,141.09,141.08,10.46695972]
[1764291974198,9.00994492,141.09,141.08,10.46695972]
[1764291975816,8.80994492,141.08,141.07,7.08848894]
[1764291975981,8.80994492,141.08,141.07,10.46727174]
[1764291976377,0.89,141.09,141.07,10.46727174]
[1764291976906,9.00994492,141.09,141.07,10.46727174]
[1764291977593,9.00994492,141.09,141.08,3.3787828]
[1764291978386,9.69994492,141.09,141.08,7.08817692]
[1764291978604,9.00994492,141.09,141.08,7.08817692]
[1764291979492,9.00994492,141.09,141.08,10.46695972]
[1764291980409,9.00994492,141.09,141.08,7.08817692]
[1764291980603,9.00994492,141.09,141.08,10.46695972]
[1764291986313,0.2,141.09,141.08,11.17695972]
[1764291991610,0.2,141.09,141.08,10.46695972]
[1764291991822,9.00994492,141.09,141.08,10.46695972]
[1764291992432,9.69994492,141.09,141.08,10.46695972]
[1764291993727,9.69994492,141.09,141.08,7.08817692]
[1764291993924,9.69994492,141.09,141.05,17.018864]
[1764291994223,8.80994492,141.07,141.06,16.308864]
[1764291994425,8.80994492,141.07,141.05,7.7996845]
[1764291995222,8.80994492,141.08,141.06,0.71]
[1764291995413,8.80994492,141.08,141.07,3.3787828]
[1764291996022,8.80994492,141.08,141.07,10.46746217]
[1764291996722,0.2,141.09,141.07,11.17746217]
[1764291996933,0.2,141.09,141.08,4.0887828]
[1764291997496,0.89,141.09,141.07,7.08867937]
[1764291998022,0.89,141.09,141.07,10.46746217]
[1764291998532,0.89,141.09,141.08,3.3787828]
[1764291999216,9.00994492,141.09,141.08,10.46695972]
[1764291999421,9.00994492,141.09,141.08,11.17695972]
[1764291999609,0.2,141.09,141.08,11.17695972]
[1764292001019,9.66994492,141.09,141.08,10.46695972]
[1764292001529,9.66994492,141.09,141.08,7.08817692]
[1764292002710,9.66994492,141.09,141.07,10.46736144]
[1764292002913,9.46994492,141.08,141.07,10.46736144]
[1764292004129,9.46994492,141.08,141.06,17.72180285]
[1764292004130,8.80994492,141.07,141.06,17.72180285]
[1764292004314,8.80994492,141.07,141.06,21.10058565]
[1764292005303,0.66,141.07,141.06,7.0891819]
[1764292008519,0.66,141.07,141.05,7.0895513]
[1764292009232,0.66,141.07,141.05,10.4683341]
[1764292010542,0.66,141.07,141.05,7.0895513]
[1764292010743,0.66,141.07,141.05,10.4683341]
[1764292011819,12.12994492,141.09,141.06,3.3787828]
[1764292011820,0.66,141.08,141.06,3.3787828]
[1764292012320,12.78994492,141.09,141.06,3.3787828]
[1764292012629,12.78994492,141.09,141.07,7.08867937]
[1764292012838,0.66,141.08,141.07,7.08867937]
[1764292014736,0.66,141.08,141.07,3.3787828]
[1764292015240,12.78994492,141.09,141.07,3.3787828]
[1764292016538,9.66994492,141.09,141.08,10.46695972]
[1764292017612,9.66994492,141.09,141.07,7.08850403]
[1764292017816,9.46994492,141.08,141.07,7.08850403]
[1764292020323,9.46994492,141.08,141.07,3.3787828]
[1764292021453,9.46994492,141.08,141.07,10.46746217]
[1764292023643,9.46994492,141.08,141.05,7.0895221]
[1764292023828,12.58994492,141.07,141.05,7.0895221]
[1764292024323,0.66,141.06,141.05,7.0895221]
[1764292025266,0.66,141.06,141.04,7.09002085]
[1764292025267,8.80994492,141.05,141.04,7.09002085]
[1764292026434,0.66,141.05,141.0,21.10884877]
[1764292026641,8.80994492,141.03,141.0,21.82884877]
[1764292026839,8.80994492,141.03,141.01,3.3787828]
[1764292027145,0.66,141.03,141.01,3.3787828]
[1764292027568,0.66,141.03,141.01,10.47047842]
[1764292028161,0.66,141.03,141.0,17.73006597]
[1764292028432,0.66,141.03,141.01,3.3787828]
[1764292028570,0.66,141.03,141.0,21.10884877]
[1764292028747,3.78,141.03,141.0,21.10884877]
[1764292028943,3.78,141.03,140.99,7.09270161]
[1764292029142,8.80994492,141.01,140.99,7.09270161]
[1764292029657,9.46994492,141.01,140.99,7.09270161]
[1764292030179,9.46994492,141.01,140.99,3.3787828]
[1764292030670,8.80994492,141.01,140.99,3.3787828]
[1764292031869,8.80994492,141.01,141.0,7.09219858]
[1764292032848,8.80994492,141.01,141.0,9.2572376]
[1764292033045,0.7,141.06,141.0,27.67773405]
[1764292033251,11.92994492,141.05,141.03,2.16503902]
[1764292033450,11.92994492,141.05,141.02,2.16503902]
[1764292033656,12.62994492,141.05,141.02,2.16503902]
[1764292033851,11.92994492,141.05,141.04,7.09018718]
[1764292034249,12.62994492,141.05,141.04,7.09018718]
[1764292036552,12.62994492,141.05,141.03,7.09068992]
[1764292037072,12.62994492,141.05,141.03,9.25572894]
[1764292043400,11.92994492,141.05,141.04,2.16503902]
[1764292043565,11.92994492,141.05,141.04,2.85503902]
[1764292044161,11.92994492,141.05,141.04,2.16503902]
[1764292044788,11.92994492,141.05,141.04,2.85503902]
[1764292045281,11.92994492,141.05,141.04,2.16503902]
[1764292045459,11.92994492,141.05,141.04,9.2552262]
[1764292048275,12.62994492,141.05,141.04,9.2552262]
[1764292049888,11.92994492,141.05,141.04,9.2552262]
[1764292054488,11.92994492,141.05,141.04,9.9452262]
[1764292054983,11.92994492,141.05,141.04,9.2552262]
[1764292058595,12.62994492,141.05,141.04,7.09018718]
[1764292058798,12.62994492,141.05,141.01,9.25673464]
[1764292059013,0.7,141.04,141.01,9.25673464]
[1764292059994,0.7,141.04,141.01,7.09169562]
[1764292063896,8.80994492,141.03,141.0,7.09204863]
[1764292064274,8.80994492,141.01,141.0,7.09204863]
[1764292064475,11.92994492,141.01,141.0,7.09204863]
[1764292064682,12.62994492,141.01,141.0,7.09204863]
[1764292065292,11.92994492,141.01,141.0,9.25708765]
[1764292074688,12.62994492,141.01,141.0,9.25708765]
[1764292075612,12.62994492,141.01,140.99,7.09270161]
[1764292075911,12.62994492,141.01,141.0,2.16503902]
[1764292076113,11.92994492,141.01,141.0,2.16503902]
[1764292077310,11.92994492,141.01,141.0,9.2572376]
[1764292079288,12.62994492,141.01,140.99,7.09270161]
[1764292079600,9.50994492,141.0,140.99,7.09270161]
[1764292082201,8.80994492,141.0,140.99,7.09270161]
[1764292083814,8.80994492,140.99,140.98,7.0932047]
[1764292084014,9.50994492,140.99,140.98,7.0932047]
[1764292084399,9.50994492,140.99,140.95,9.25535704]
[1764292084722,8.80994492,140.97,140.95,9.25535704]
[1764292084922,0.7,140.96,140.94,9.26025684]
[1764292085096,8.80994492,140.95,140.94,9.26025684]
[1764292085613,9.50994492,140.95,140.94,7.09521782]
[1764292086001,9.50994492,140.95,140.93,7.09554523]
[1764292086529,8.80994492,140.93,140.91,7.09637561]
[1764292086700,11.92994492,140.93,140.91,7.09637561]
[1764292086896,9.50994492,140.92,140.91,7.09637561]
[1764292087623,8.80994492,140.91,140.9,7.15723207]
[1764292088027,8.80994492,140.91,140.9,9.32227109]
[1764292090230,8.80994492,140.92,140.9,9.32227109]
[1764292090415,8.80994492,140.92,140.91,2.16503902]
[1764292091421,8.80994492,140.92,140.91,9.26176742]
[1764292091801,8.80994492,140.92,140.91,9.94176742]
[1764292092206,8.80994492,140.94,140.91,27.68358844]
[1764292092406,8.80994492,140.94,140.93,2.16503902]
[1764292092607,8.80994492,140.94,140.93,3.38583628]
[1764292093418,8.80994492,140.95,140.94,7.09521782]
[1764292093615,8.80994492,140.95,140.94,10.4810541]
[1764292094938,8.80994492,141.01,140.94,28.21909865]
[1764292095126,8.80994492,141.0,140.99,3.38583628]
[1764292095638,9.50994492,141.0,140.99,10.47853789]
[1764292097135,8.80994492,141.0,140.99,10.47853789]
[1764292098416,9.49994492,141.0,140.99,10.47853789]
[1764292098715,9.49994492,141.0,140.99,7.09270161]
[1764292100857,9.49994492,141.0,140.98,7.09300123]
[1764292101016,8.80994492,140.98,140.96,7.09371915]
[1764292101216,3.12,140.97,140.96,7.09371915]
[1764292101523,3.81,140.97,140.96,7.09371915]
[1764292101742,12.61994492,140.97,140.95,10.48042605]
[1764292101923,0.69,140.96,140.95,7.09458977]
[1764292104346,8.80994492,140.95,140.94,7.0950304]
[1764292104740,0.69,140.95,140.93,10.4813679]
[1764292104919,8.80994492,140.96,140.93,10.4813679]
[1764292105247,3.81,140.99,140.95,3.38583628]
[1764292105421,8.80994492,140.98,140.94,11.16913925]
[1764292105749,0.69,141.01,140.94,30.59800325]
[1764292105921,3.12,141.02,140.95,0.69]
[1764292106121,8.80994492,141.01,140.95,0.69]
[1764292106553,8.80994492,141.01,140.96,24.82973892]
[1764292106845,8.80994492,141.01,141.0,3.38583628]
[1764292108339,8.80994492,141.01,140.97,16.308864]
[1764292108544,9.49994492,141.0,140.99,3.38583628]
[1764292108758,9.49994492,141.0,140.99,10.47853789]
[1764292109048,8.80994492,141.0,140.99,10.47853789]
[1764292109748,3.12,141.02,140.99,28.90029191]
[1764292109916,9.49994492,141.01,140.98,10.47893753]
[1764292110423,0.69,141.0,140.98,10.47893753]
[1764292111944,0.69,141.0,140.98,3.38583628]
[1764292112526,0.69,141.0,140.97,21.1194742]
[1764292113730,0.69,141.0,140.97,28.21318208]
[1764292117251,0.69,141.0,140.97,10.47954416]
[1764292120332,0.69,141.0,140.96,10.4800474]
[1764292120534,11.92994492,140.99,140.97,3.38583628]
[1764292120951,11.92994492,140.99,140.98,3.38583628]
[1764292122345,11.92994492,140.99,140.98,10.47904098]
[1764292123761,11.92994492,140.99,140.97,10.47954416]
[1764292124258,11.92994492,140.99,140.97,11.13954416]
[1764292124557,11.92994492,140.99,140.97,10.47954416]
[1764292124764,12.60994492,140.99,140.97,10.47954416]
[1764292126576,8.80994492,140.97,140.9,0.06]
[1764292126748,12.1957812,140.95,140.9,0.06]
[1764292127067,8.80994492,140.95,140.91,7.0967284]
[1764292127254,8.80994492,140.93,140.91,7.0967284]
[1764292132265,9.48994492,140.92,140.91,7.0967284]
[1764292132639,9.48994492,140.92,140.9,7.15712617]
[1764292132640,8.80994492,140.91,140.9,7.15712617]
[1764292132946,9.48994492,140.91,140.9,7.15712617]
[1764292134057,9.48994492,140.91,140.9,0.06]
[1764292134466,12.8757812,140.91,140.9,0.06]
[1764292134853,19.9725096,140.91,140.9,0.06]
[1764292135741,36.2813736,140.91,140.9,0.06]
[1764292137073,10.80994491,140.9,140.89,0.1]
[1764292137247,14.87578119,140.9,140.89,0.1]
[1764292137774,12.8757812,140.9,140.89,0.1]
[1764292137959,14.87578119,140.9,140.89,0.1]
[1764292138874,21.97301326,140.9,140.89,0.1]
[1764292141270,16.58717699,140.9,140.89,0.1]
[1764292141476,19.97301327,140.9,140.89,0.1]
[1764292141770,23.09301327,140.9,140.89,0.1]
[1764292142289,39.40187727,140.9,140.89,0.1]
[1764292143085,23.09301327,140.9,140.89,0.1]
[1764292143457,39.40187727,140.9,140.89,0.1]
[1764292143983,8.80994492,140.89,140.88,0.1]
[1764292144152,14.87578119,140.89,140.88,0.1]
[1764292145782,21.97351701,140.89,140.88,0.1]
[1764292145956,25.11880892,140.87,140.86,1e-08]
[1764292146159,31.6246452,140.87,140.86,1e-08]
[1764292146476,25.11880892,140.84,140.83,0.1]
[1764292146683,31.6246452,140.84,140.83,0.1]
[1764292146882,32.3046452,140.84,140.83,0.1]
[1764292147972,39.4049008,140.84,140.83,0.1]
[1764292148517,8.80994492,140.83,140.81,0.1]
[1764292148667,12.1957812,140.82,140.81,0.1]
[1764292148857,12.8757812,140.82,140.81,0.1]
[1764292150963,19.97704522,140.82,140.81,0.1]
[1764292151689,9.48994492,140.82,140.81,0.1]
[1764292151989,12.8757812,140.82,140.81,0.1]
[1764292152585,16.59120894,140.82,140.81,0.1]
[1764292152794,18.76319184,140.82,140.81,0.1]
[1764292155589,8.80994492,140.81,140.76,2.1719829]
[1764292155795,8.80994492,140.79,140.76,2.1719829]
[1764292157793,8.80994492,140.79,140.77,9.27576921]
[1764292159201,8.80994492,140.79,140.77,7.10378631]
[1764292160412,8.80994492,140.79,140.77,9.41576921]
[1764292160715,8.80994492,140.79,140.78,2.1719829]
[1764292161089,8.80994492,140.79,140.77,9.27576921]
[1764292161913,8.80994492,140.79,140.77,7.10378631]
[1764292164683,8.80994492,140.79,140.77,9.27576921]
[1764292166286,8.80994492,140.79,140.77,9.41576921]
[1764292166688,8.80994492,140.79,140.77,9.27576921]
[1764292169704,8.80994492,140.79,140.77,9.41576921]
[1764292174899,8.80994492,140.79,140.78,9.27526461]
[1764292175621,8.80994492,140.79,140.78,7.10328171]
[1764292184526,8.80994492,140.84,140.78,27.1734689]
[1764292184825,11.92994492,140.84,140.81,2.1719829]
[1764292185021,11.92994492,140.84,140.82,2.1719829]
[1764292185201,12.60994492,140.84,140.82,2.1719829]
[1764292186325,12.60994492,140.84,140.82,9.27287624]
[1764292186623,12.60994492,140.84,140.82,7.10089334]
[1764292186827,12.60994492,140.84,140.82,9.27287624]
[1764292187127,0.68,140.83,140.82,9.27287624]
[1764292187329,8.80994492,140.82,140.81,2.1719829]
[1764292187502,8.80994492,140.82,140.8,7.10227272]
[1764292187703,12.60994492,140.81,140.8,7.10227272]
[1764292188535,11.92994492,140.81,140.8,7.10227272]
[1764292192134,8.80994492,140.8,140.79,2.1719829]
[1764292193606,3.12,140.81,140.79,7.10277718]
[1764292193916,3.12,140.81,140.79,9.27476008]
[1764292194930,9.48994492,140.8,140.77,7.10361183]
[1764292195430,8.80994492,140.78,140.77,7.10361183]
[1764292196428,8.80994492,140.78,140.76,24.8644716]
[1764292196628,8.80994492,140.78,140.76,27.1764545]
[1764292196939,8.80994492,140.78,140.76,27.0364545]
[1764292198215,8.80994492,140.8,140.78,7.10328171]
[1764292198415,8.80994492,140.8,140.78,9.27526461]
[1764292198613,8.80994492,140.81,140.79,2.3119829]
[1764292198911,8.80994492,140.81,140.8,2.3119829]
[1764292199112,9.48994492,140.81,140.78,7.10328171]
[1764292199330,8.80994492,140.79,140.77,7.10358478]
[1764292199634,8.80994492,140.79,140.77,9.27556768]
[1764292199818,8.80994492,140.81,140.78,2.1719829]
[1764292200026,9.48994492,140.81,140.78,2.1719829]
[1764292200328,9.48994492,140.81,140.79,7.10277718]
[1764292200843,9.48994492,140.81,140.79,9.27476008]
[1764292201229,8.80994492,140.81,140.79,9.27476008]
[1764292201548,9.48994492,140.81,140.79,9.27476008]
[1764292203546,9.48994492,140.81,140.79,7.10277718]
[1764292203725,0.68,140.8,140.79,7.10277718]
[1764292206848,0.68,140.8,140.79,2.1719829]
[1764292207219,8.80994492,140.81,140.79,2.1719829]
[1764292207542,8.80994492,140.81,140.8,2.1719829]
[1764292207942,8.80994492,140.81,140.77,24.86257533]
[1764292208146,8.80994492,140.79,140.77,24.86257533]
[1764292208341,8.80994492,140.79,140.77,27.03455823]
[1764292208534,8.80994492,140.81,140.77,27.03455823]
[1764292208740,8.80994492,140.79,140.77,27.03455823]
[1764292208940,8.80994492,140.79,140.78,2.1719829]
[1764292209451,8.80994492,140.79,140.78,9.27526461]
[1764292211550,8.80994492,140.81,140.78,27.1734689]
[1764292211751,8.80994492,140.81,140.8,2.1719829]
[1764292212750,8.80994492,140.81,140.8,9.27425562]
[1764292214547,8.80994492,140.82,140.8,28.24982603]
[1764292214755,9.51994492,140.82,140.81,3.3918715]
[1764292215352,9.51994492,140.85,140.81,28.38806069]
[1764292215531,9.51994492,140.85,140.81,28.24806069]
[1764292215831,0.71,140.84,140.81,28.24806069]
[1764292218353,0.71,140.84,140.81,24.85618919]
[1764292218755,0.71,140.84,140.81,28.24806069]
[1764292222060,0.71,140.84,140.81,17.75442085]
[1764292222273,0.71,140.84,140.81,21.14629235]
[1764292223150,0.71,140.84,140.81,17.75442085]
[1764292223358,0.71,140.84,140.81,21.14629235]
[1764292224250,0.71,140.84,140.81,28.24806069]
[1764292225042,0.71,140.84,140.81,24.85618919]
[1764292225242,0.71,140.84,140.81,28.24806069]
[1764292225747,8.80994492,140.83,140.8,7.10210246]
[1764292226066,3.12,140.82,140.8,7.10210246]
[1764292226265,3.83,140.82,140.8,7.10210246]
[1764292226468,0.71,140.81,140.8,7.10210246]
[1764292228751,0.71,140.81,140.8,3.3918715]
[1764292229644,8.80994492,140.8,140.79,17.75622809]
[1764292230046,9.51994492,140.8,140.79,21.14809959]
[1764292230374,9.51994492,140.8,140.77,14.168864]
[1764292230554,9.51994492,140.8,140.75,8.80994492]
[1764292230555,49.9750516,140.81,140.66,3.3918715]
[1764292230884,8.80994492,140.69,140.64,88.55928659]
[1764292231048,8.80994492,140.67,140.64,72.05264285]
[1764292231252,8.80994492,140.67,140.64,68.66077135]
[1764292231450,8.80994492,140.67,140.65,0.72]
[1764292231751,12.20181642,140.67,140.64,67.94077135]
[1764292231954,19.7007355,140.65,140.64,67.94077135]
[1764292232164,28.51068042,140.65,140.64,67.94077135]
[1764292232762,60.13669321,140.65,140.64,67.94077135]
[1764292232954,35.62052755,140.65,140.64,25.24041548]
[1764292233577,38.76052755,140.65,140.64,1.47041548]
[1764292235250,8.80994492,140.64,140.62,0.1]
[1764292235576,8.80994492,140.63,140.62,0.1]
[1764292235780,11.94994492,140.63,140.62,0.1]
[1764292236162,8.80994492,140.63,140.62,0.82]
[1764292236481,11.94994492,140.63,140.62,0.82]
[1764292236686,18.73368792,140.63,140.61,0.1]
[1764292236853,8.80994492,140.58,140.55,63.78897041]
[1764292237180,28.51068042,140.56,140.55,21.07522371]
[1764292237382,31.65068042,140.56,140.55,21.07522371]
[1764292238268,8.80994492,140.55,140.49,0.72]
[1764292238458,12.20181642,140.55,140.49,7.83789453]
[1764292238668,8.80994492,140.55,140.5,3.3918715]
[1764292238867,8.80994492,140.55,140.52,3.3918715]
[1764292239177,8.80994492,140.53,140.51,0.72]
[1764292239380,8.80994492,140.53,140.52,0.72]
[1764292239582,8.80994492,140.53,140.52,4.1118715]
[1764292240886,8.80994492,140.53,140.47,16.308864]
[1764292241087,8.80994492,140.53,140.47,20.3707355]
[1764292241285,8.80994492,140.53,140.47,24.09775701]
[1764292241472,8.80994492,140.53,140.48,3.3918715]
[1764292241678,8.80994492,140.53,140.48,4.0618715]
[1764292241873,8.80994492,140.53,140.49,4.0618715]
[1764292242300,12.20181642,140.51,140.46,71.22785124]
[1764292242480,3.14,140.5,140.46,71.22785124]
[1764292242677,3.14,140.5,140.46,74.61972274]
[1764292242872,3.14,140.5,140.46,81.73912593]
[1764292243073,3.14,140.5,140.46,71.22785124]
[1764292243272,3.14,140.5,140.46,74.61972274]
[1764292243473,11.94994492,140.5,140.47,0.67]
[1764292243672,3.14,140.5,140.49,3.3918715]
[1764292243889,3.14,140.5,140.47,0.67]
[1764292244896,3.14,140.5,140.49,16.15718805]
[1764292245398,3.14,140.5,140.49,16.82718805]
[1764292245786,3.14,140.5,140.49,0.67]
[1764292246100,3.14,140.5,140.46,70.55785124]
[1764292246303,3.14,140.5,140.47,9.70924372]
[1764292246508,3.14,140.5,140.48,9.03924372]
[1764292247295,3.14,140.5,140.49,9.70924372]
[1764292247484,3.14,140.5,140.49,0.67]
[1764292248305,3.14,140.5,140.48,16.15768433]
[1764292248306,3.14,140.5,140.48,9.03924372]
[1764292248503,3.14,140.5,140.48,9.70924372]
[1764292249279,3.14,140.5,140.48,16.8275017]
[1764292250301,3.14,140.5,140.48,7.78825798]
[1764292250483,3.14,140.5,140.48,16.8275017]
[1764292252303,3.14,140.5,140.48,0.67]
[1764292252805,3.14,140.5,140.48,9.70924372]
[1764292254306,3.14,140.5,140.48,0.67]
[1764292254928,8.80994492,140.49,140.46,79.59709496]
[1764292255099,8.80994492,140.49,140.46,87.38655805]
[1764292255424,8.80994492,140.49,140.47,9.70924372]
[1764292256594,8.80994492,140.49,140.46,77.67731433]
[1764292256595,8.80994492,140.49,140.48,9.70924372]
[1764292257121,8.80994492,140.49,140.48,0.67]
[1764292257324,8.80994492,140.49,140.48,7.78845102]
[1764292258226,8.80994492,140.49,140.48,16.82769474]
[1764292258510,3.14,140.5,140.48,16.82769474]
[1764292258712,11.94994492,140.5,140.49,9.70924372]
[1764292258919,3.14,140.5,140.49,9.70924372]
[1764292259291,3.14,140.5,140.49,16.82718805]